Workbook

Sheet Sim States
B2: Transition Probabilities π | D2: From State… | AD2: Vols | AH2: CorrelsVecl
D3: 1 | E3: 2 | F3: 3 | G3: 4 | AB3: A | AC3: B | AD3: C | AF3: (A,B) | AG3: (A,C) | AH3: (B,C)
B4: To State… | C4: 1 | D4: 0.9 | E4: 0 | F4: 0 | G4: 0 | AB4: =#REF! ->  | AF4: =_xll.apaMatrix.Vecl(#REF!) -> 
C5: 2 | D5: 0.1 | E5: 0.9 | F5: 0 | G5: 0 | AB5: =#REF! ->  | AF5: =_xll.apaMatrix.Vecl(#REF!) -> 
C6: 3 | D6: 0 | E6: 0.1 | F6: 0.95 | G6: 0.01 | AB6: =#REF! ->  | AF6: =_xll.apaMatrix.Vecl(#REF!) -> 
C7: 4 | D7: 0 | E7: 0 | F7: 0.05 | G7: 0.99 | AB7: =#REF! ->  | AF7: =_xll.apaMatrix.Vecl(#REF!) -> 
D8: =SUM(D4:D7) -> 1 | E8: =SUM(E4:E7) -> 1 | F8: 1 | G8: 1
B10: Initial State | C10: 1
C11: …this is called "Markov property": only the current state affects the next state
B13: nObs | C13: 100
D15: Simulated State Trajectory
C16: t | D16: St
C17: 0 | D17: =C10 -> 1
C18: =C17+1 -> 1 | D18: =_xll.apaMarkovRegimeSwitching.Simulation.States(C13,C10,D4:G7) -> 1
C19: =C18+1 -> 2 | D19: 1
C20: 3 | D20: 1
C21: 4 | D21: 1
C22: 5 | D22: 1
C23: 6 | D23: 1
C24: 7 | D24: 1
C25: 8 | D25: 1
C26: 9 | D26: 2
C27: 10 | D27: 2
C28: 11 | D28: 2
C29: 12 | D29: 3
C30: 13 | D30: 3
C31: 14 | D31: 3
C32: 15 | D32: 3
C33: 16 | D33: 3
C34: 17 | D34: 3
C35: 18 | D35: 3
C36: 19 | D36: 3
C37: 20 | D37: 3
C38: 21 | D38: 3
C39: 22 | D39: 3
C40: 23 | D40: 3
C41: 24 | D41: 3
C42: 25 | D42: 3
C43: 26 | D43: 3
C44: 27 | D44: 4
C45: 28 | D45: 4
C46: 29 | D46: 4
C47: 30 | D47: 4
C48: 31 | D48: 4
C49: 32 | D49: 4
C50: 33 | D50: 4
C51: 34 | D51: 4
C52: 35 | D52: 4
C53: 36 | D53: 4
C54: 37 | D54: 4
C55: 38 | D55: 4
C56: 39 | D56: 4
C57: 40 | D57: 4
C58: 41 | D58: 4
C59: 42 | D59: 4
C60: 43 | D60: 4
C61: 44 | D61: 4
C62: 45 | D62: 4
C63: 46 | D63: 4
C64: 47 | D64: 4
C65: 48 | D65: 4
C66: 49 | D66: 4
C67: 50 | D67: 4
C68: 51 | D68: 4
C69: 52 | D69: 4
C70: 53 | D70: 4
C71: 54 | D71: 4
C72: 55 | D72: 4
C73: 56 | D73: 4
C74: 57 | D74: 4
C75: 58 | D75: 4
C76: 59 | D76: 4
C77: 60 | D77: 4
C78: 61 | D78: 4
C79: 62 | D79: 4
C80: 63 | D80: 4
C81: 64 | D81: 4
C82: 65 | D82: 4
C83: =C82+1 -> 66 | D83: 4
C84: 67 | D84: 4
C85: 68 | D85: 4
C86: 69 | D86: 4
C87: 70 | D87: 4
C88: 71 | D88: 4
C89: 72 | D89: 4
C90: 73 | D90: 4
C91: 74 | D91: 4
C92: 75 | D92: 4
C93: 76 | D93: 4
C94: 77 | D94: 4
C95: 78 | D95: 4
C96: 79 | D96: 4
C97: 80 | D97: 4
C98: 81 | D98: 4
C99: 82 | D99: 4
C100: 83 | D100: 4
C101: 84 | D101: 4
C102: 85 | D102: 4
C103: 86 | D103: 4
C104: 87 | D104: 4
C105: 88 | D105: 4
C106: 89 | D106: 4
C107: 90 | D107: 4
C108: 91 | D108: 4
C109: 92 | D109: 4
C110: 93 | D110: 4
C111: 94 | D111: 4
C112: 95 | D112: 4
C113: 96 | D113: 4
C114: 97 | D114: 4
C115: 98 | D115: 4
C116: 99 | D116: 4
C117: 100 | D117: 4

Sheet Sim Assets
C2: State 1 | G2: State 2 | K2: State 3 | O2: State 4
B3: Assets | C3: A | D3: B | E3: C | G3: A | H3: B | I3: C | K3: A | L3: B | M3: C | O3: A | P3: B | Q3: C
B4: Expected Returns | C4: 0.2 | D4: 0.1 | E4: 0.05 | G4: 0.25 | H4: 0.1 | I4: 0.05 | K4: -0.2 | L4: 0.2 | M4: 0.01 | O4: 0.25 | P4: 0.15 | Q4: -0.05
B6: Volatilities | C6: 0.25 | D6: 0.15 | E6: 0.1 | G6: 0.3 | H6: 0.1 | I6: 0.05 | K6: 0.5 | L6: 0.1 | M6: 0.05 | O6: 0.25 | P6: 0.15 | Q6: 0.35
B8: Correlations | C8: 1 | D8: 0.7 | E8: 0.3 | G8: 1 | H8: 0.5 | I8: 0.7 | K8: 1 | L8: -0.5 | M8: 0.5 | O8: 1 | P8: 0.4 | Q8: 0.2
C9: =D8 -> 0.7 | D9: 1 | E9: 0.2 | G9: =H8 -> 0.5 | H9: 1 | I9: 0.8 | K9: =L8 -> -0.5 | L9: 1 | M9: 0.4 | O9: =P8 -> 0.4 | P9: 1 | Q9: 0.1
C10: =E8 -> 0.3 | D10: =E9 -> 0.2 | E10: 1 | G10: =I8 -> 0.7 | H10: =I9 -> 0.8 | I10: 1 | K10: =M8 -> 0.5 | L10: =M9 -> 0.4 | M10: 1 | O10: =Q8 -> 0.2 | P10: =Q9 -> 0.1 | Q10: 1
B11: Is Valid? | C11: =_xll.apaCorrels.IsValid(C8:E10) -> TRUE | G11: =_xll.apaCorrels.IsValid(G8:I10) -> TRUE | K11: =_xll.apaCorrels.IsValid(K8:M10) -> TRUE | O11: =_xll.apaCorrels.IsValid(O8:Q10) -> TRUE
B13: Initial State | C13: 1
B15: Transition Probabilities π | D15: From State… | K15: Function Arguments | N15: Means | S15: Vols | W15: CorrelsVecl
D16: 1 | E16: 2 | F16: 3 | G16: 4 | L16: A | M16: B | N16: C | Q16: A | R16: B | S16: C | U16: (A,B) | V16: (A,C) | W16: (B,C)
B17: To State… | C17: 1 | D17: 0.9 | E17: 0 | F17: 0 | G17: 0 | K17: 1 | L17: =C4:E4 -> 0.2 | M17: 0.1 | N17: 0.05 | Q17: =C6:E6 -> 0.25 | R17: 0.15 | S17: 0.1 | U17: =_xll.apaMatrix.Vecl(C8:E10) -> 0.7 | V17: 0.3 | W17: 0.2
C18: 2 | D18: 0.1 | E18: 0.9 | F18: 0 | G18: 0 | K18: 2 | L18: =G4:I4 -> 0.25 | M18: 0.1 | N18: 0.05 | Q18: =G6:I6 -> 0.3 | R18: 0.1 | S18: 0.05 | U18: =_xll.apaMatrix.Vecl(G8:I10) -> 0.5 | V18: 0.7 | W18: 0.8
C19: 3 | D19: 0 | E19: 0.1 | F19: 0.95 | G19: 0.01 | K19: 3 | L19: =K4:M4 -> -0.2 | M19: 0.2 | N19: 0.01 | Q19: =K6:M6 -> 0.5 | R19: 0.1 | S19: 0.05 | U19: =_xll.apaMatrix.Vecl(K8:M10) -> -0.5 | V19: 0.5 | W19: 0.4
C20: 4 | D20: 0 | E20: 0 | F20: 0.05 | G20: 0.99 | K20: 4 | L20: =O4:Q4 -> 0.25 | M20: 0.15 | N20: -0.05 | Q20: =O6:Q6 -> 0.25 | R20: 0.15 | S20: 0.35 | U20: =_xll.apaMatrix.Vecl(O8:Q10) -> 0.4 | V20: 0.2 | W20: 0.1
D21: =SUM(D17:D20) -> 1 | E21: =SUM(E17:E20) -> 1 | F21: 1 | G21: 1
B23: nObs | C23: 100
B24: Show States? | C24: TRUE | H24: Scale | I24: 20
I26: Cumulative Returns
C27: Simulated Asset Returns | G27: A | H27: B | I27: C | T27: Unconditional Statistics for Simulated Asset Returns
B28: State | C28: A | D28: B | E28: C | G28: 1 | H28: 1 | I28: 1 | T28: A | U28: B | V28: C | Y28: A | Z28: B | AA28: C
B29: =_xll.apaMarkovRegimeSwitching.Simulation.Assets(C23,C13,L17:N20,Q17:S20,U17:W20,D17:G20,C24) -> 1 | C29: 0.3578507493 | D29: 0.08282300088 | E29: 0.0629094091 | G29: =G28*(1+C29/$I$24) -> 1.017892537 | H29: =H28*(1+D29/$I$24) -> 1.00414115 | I29: =I28*(1+E29/$I$24) -> 1.00314547 | S29: Exp Rets | T29: =AVERAGE(C29:C128) -> 0.1728476969 | U29: =AVERAGE(D29:D128) -> 0.1623693847 | V29: =AVERAGE(E29:E128) -> -0.07608404462 | X29: Skew | Y29: =SKEW(C29:C128) -> -0.02803805292 | Z29: =SKEW(D29:D128) -> -0.1690762551 | AA29: =SKEW(E29:E128) -> -0.358332426
B30: 2 | C30: 0.8076938109 | D30: 0.2169179039 | E30: 0.1046416071 | G30: 1.058999813 | H30: 1.01503196 | I30: 1.008394008
B31: 3 | C31: -0.4474740914 | D31: 0.2345146494 | E31: -0.01062145517 | G31: 1.035306064 | H31: 1.026933953 | I31: 1.007858478 | S31: Vols | T31: =STDEV(C29:C128) -> 0.3355734606 | U31: =STDEV(D29:D128) -> 0.1371375744 | V31: =STDEV(E29:E128) -> 0.3467389491 | X31: Kurt | Y31: =KURT(C29:C128) -> 0.9115568721 | Z31: =KURT(D29:D128) -> -0.1694109035 | AA31: =KURT(E29:E128) -> 1.438236846
B32: 3 | C32: 0.1305038115 | D32: 0.1749858078 | E32: -0.01032453928 | G32: 1.042061633 | H32: 1.035918896 | I32: 1.007338194
B33: 3 | C33: 0.693284543 | D33: 0.07404151915 | E33: 0.02356625989 | G33: 1.078183894 | H33: 1.039753947 | I33: 1.008525154 | S33: Correls | T33: =_xll.apaCorrels(C29:E128) -> 1 | U33: 0.09693656738 | V33: 0.07776333563
B34: 4 | C34: 0.2795263588 | D34: -0.1206039479 | E34: 0.8403760004 | G34: 1.093252935 | H34: 1.033484025 | I34: 1.05090217 | T34: 0.09693656738 | U34: 1 | V34: -0.02679197299
B35: 4 | C35: 0.3138230477 | D35: 0.2989115159 | E35: 0.01134776262 | G35: 1.110407333 | H35: 1.048930039 | I35: 1.05149844 | T35: 0.07776333563 | U35: -0.02679197299 | V35: 1
B36: 4 | C36: 0.1378817724 | D36: 0.03397329591 | E36: 0.04013764528 | G36: 1.11806258 | H36: 1.05071182 | I36: 1.053608673
B37: 4 | C37: 0.2278283118 | D37: 0.011620605 | E37: -0.3376967755 | G37: 1.130798896 | H37: 1.051322315 | I37: 1.035818661
B38: 4 | C38: -0.2301441474 | D38: 0.1624677816 | E38: -0.4618145207 | G38: 1.117786558 | H38: 1.059862615 | I38: 1.011900856
B39: 4 | C39: 0.2229251567 | D39: -0.1014030776 | E39: 0.4615348968 | G39: 1.130245695 | H39: 1.054488949 | I39: 1.035252234
B40: 4 | C40: -0.1312175584 | D40: -0.03778263448 | E40: -0.3664382401 | G40: 1.122830291 | H40: 1.05249688 | I40: 1.016284433
B41: 4 | C41: 0.2325132107 | D41: 0.1525979729 | E41: -0.1978674681 | G41: 1.135883935 | H41: 1.060527325 | I41: 1.006229952
B42: 4 | C42: -0.01893961883 | D42: 0.1558033864 | E42: 0.0874751655 | G42: 1.134808275 | H42: 1.068789012 | I42: 1.010630958
B43: 4 | C43: 0.3693076108 | D43: 0.2778770305 | E43: -0.4318015277 | G43: 1.155762941 | H43: 1.083638608 | I43: 0.9888113589
B44: 4 | C44: 0.4248663226 | D44: 0.3111504156 | E44: -0.729375062 | G44: 1.180315179 | H44: 1.100497338 | I44: 0.9527506416
B45: 4 | C45: -0.1375615075 | D45: 0.2074022064 | E45: 0.1822221892 | G45: 1.172196882 | H45: 1.111909617 | I45: 0.961431257
B46: 4 | C46: 0.4574751154 | D46: 0.200014065 | E46: 0.2016929245 | G46: 1.199009427 | H46: 1.123029495 | I46: 0.9711269511
B47: 4 | C47: -0.05745550251 | D47: 0.3486081837 | E47: 0.006066249278 | G47: 1.195564943 | H47: 1.142604359 | I47: 0.971421506
B48: 4 | C48: 0.4235703803 | D48: 0.3268524155 | E48: -0.623015719 | G48: 1.220885238 | H48: 1.161277508 | I48: 0.9411609626
B49: 4 | C49: 0.6108541746 | D49: 0.2091533933 | E49: -0.1043450409 | G49: 1.25817438 | H49: 1.173421765 | I49: 0.9362506886
B50: 4 | C50: 0.7551283814 | D50: 0.1564458247 | E50: 0.24842614 | G50: 1.305678539 | H50: 1.182600612 | I50: 0.9478801459
B51: 4 | C51: 0.8185448977 | D51: 0.2646735197 | E51: 0.1435438092 | G51: 1.359116364 | H51: 1.198250765 | I51: 0.9546832622
B52: 4 | C52: 0.1184358021 | D52: 0.2051464326 | E52: -0.1314060683 | G52: 1.367164766 | H52: 1.210541608 | I52: 0.9484107035
B53: 4 | C53: 0.2134097541 | D53: 0.05767832028 | E53: -0.8069467817 | G53: 1.381753081 | H53: 1.214032709 | I53: 0.9101448552
B54: 4 | C54: 0.2170178194 | D54: 0.0185393695 | E54: -0.4285634178 | G54: 1.396746333 | H54: 1.215158079 | I54: 0.8906421157
B55: 4 | C55: 0.1018803162 | D55: -0.001033615022 | E55: 0.1910744751 | G55: 1.403861381 | H55: 1.215095279 | I55: 0.8991510645
B56: 4 | C56: 0.4443212446 | D56: 0.2085625526 | E56: 0.1680751445 | G56: 1.435049653 | H56: 1.227766447 | I56: 0.9067073117
B57: 4 | C57: 0.3160560897 | D57: 0.1348819039 | E57: 0.09955746848 | G57: 1.457727462 | H57: 1.236046621 | I57: 0.911220786
B58: 4 | C58: 0.3431558234 | D58: 0.4099034223 | E58: 0.1028927254 | G58: 1.482738845 | H58: 1.261379608 | I58: 0.9159086855
B59: 4 | C59: 0.7886954515 | D59: 0.3524177568 | E59: -0.6314003334 | G59: 1.541210314 | H59: 1.283606237 | I59: 0.886993433
B60: 4 | C60: 0.03855573046 | D60: 0.1194740723 | E60: -0.3913568862 | G60: 1.544181439 | H60: 1.29127412 | I60: 0.8696368836
B61: 4 | C61: 0.4604958754 | D61: 0.2026045286 | E61: 0.5254706688 | G61: =G60*(1+C61/$I$24) -> 1.579735898 | H61: =H60*(1+D61/$I$24) -> 1.304355019 | I61: =I60*(1+E61/$I$24) -> 0.8924853173
B62: 4 | C62: 0.4976771146 | D62: 0.1748825481 | E62: -0.6776816902 | G62: 1.619045818 | H62: 1.315760465 | I62: 0.8622442694
B63: 4 | C63: 0.3811229218 | D63: 0.2752216187 | E63: -0.02048331208 | G63: 1.649898592 | H63: 1.333866752 | I63: 0.8613611885
B64: 4 | C64: 0.2453224682 | D64: 0.2618031815 | E64: 0.1856422339 | G64: 1.670136452 | H64: 1.35132728 | I64: 0.8693564393
B65: 4 | C65: 0.1330357028 | D65: 0.2945047334 | E65: 0.3386940254 | G65: 1.68124584 | H65: 1.371225894 | I65: 0.8840787309
B66: 4 | C66: 0.115930865 | D66: -0.1981671277 | E66: 0.04882948382 | G66: 1.690991255 | H66: 1.357639299 | I66: 0.8862371863
B67: 4 | C67: 0.3595034694 | D67: 0.5135086218 | E67: 0.2179474561 | G67: 1.721387116 | H67: 1.392497273 | I67: 0.8958948433
B68: 4 | C68: -0.08469410673 | D68: 0.07260867752 | E68: -0.03536462445 | G68: 1.714097549 | H68: 1.397552642 | I68: 0.894310694
B69: 4 | C69: 0.1201190003 | D69: 0.1088985936 | E69: -0.0302003135 | G69: 1.724392333 | H69: 1.405162218 | I69: 0.8929602709
B70: 4 | C70: 0.003803849644 | D70: 0.1019256055 | E70: -0.3150999081 | G70: 1.724720299 | H70: 1.412323319 | I70: 0.8788916859
B71: 4 | C71: -0.004263711672 | D71: 0.05780000709 | E71: 0.1558825588 | G71: 1.724352614 | H71: 1.416404934 | I71: 0.8857418802
B72: 4 | C72: 1.056474693 | D72: 0.2883041205 | E72: 0.174897899 | G72: 1.815439359 | H72: 1.436822703 | I72: 0.8934875998
B73: 4 | C73: -0.1871448607 | D73: -0.02032238281 | E73: -0.05774454687 | G73: 1.798451851 | H73: 1.43536272 | I73: 0.890907898
B74: 4 | C74: 0.2362535146 | D74: 0.105839685 | E74: -0.4597853518 | G74: 1.81969638 | H74: 1.442958636 | I74: 0.870426578
B75: 4 | C75: 0.04057371691 | D75: 0.04713042868 | E75: 0.2057614385 | G75: 1.823387972 | H75: 1.446358999 | I75: 0.8793815892
B76: 4 | C76: 0.2378618702 | D76: 0.1188120746 | E76: -0.4706862111 | G76: 1.845073696 | H76: 1.454951245 | I76: 0.8586859498
B77: 4 | C77: 0.01497737296 | D77: 0.2607189068 | E77: -0.4610916744 | G77: 1.846455414 | H77: 1.47391791 | I77: 0.8388893027
B78: 4 | C78: 0.001553275951 | D78: -0.04218383049 | E78: 0.09034474347 | G78: 1.846598816 | H78: 1.470809135 | I78: 0.8426787646
B79: 4 | C79: 0.3158739273 | D79: 0.1707175396 | E79: -0.1780889701 | G79: 1.875763437 | H79: 1.483363781 | I79: 0.8351751749
B80: 4 | C80: -0.1667583744 | D80: 0.2242155419 | E80: -0.2667228164 | G80: 1.860123474 | H80: 1.499993441 | I80: 0.8240371612
B81: 4 | C81: -0.1098768771 | D81: 0.1263414506 | E81: 0.1338505565 | G81: 1.849904246 | H81: 1.509469009 | I81: 0.8295520528
B82: 4 | C82: -0.1435880208 | D82: -0.07934576278 | E82: -0.5177545494 | G82: 1.836623042 | H82: 1.50348051 | I82: 0.8080768354
B83: 4 | C83: 0.1385897437 | D83: 0.3211770045 | E83: -0.1507500847 | G83: 1.849349898 | H83: 1.527624679 | I83: 0.8019859528
B84: 4 | C84: 0.2716582337 | D84: 0.1511223363 | E84: 0.388463916 | G84: 1.874469454 | H84: 1.539167589 | I84: 0.817563083
B85: 4 | C85: -0.2887846079 | D85: 0.2259843995 | E85: -0.3480126047 | G85: 1.847403558 | H85: 1.556558982 | I85: 0.8033369701
B86: 4 | C86: 0.1921832808 | D86: 0.282292542 | E86: -0.3137782235 | G86: 1.865155562 | H86: 1.578529232 | I86: 0.7907334877
B87: 4 | C87: 0.2490302663 | D87: 0.2667553966 | E87: -0.8661501836 | G87: 1.888379571 | H87: 1.599583291 | I87: 0.7564887899
B88: 4 | C88: 0.2533822813 | D88: 0.2884109568 | E88: -0.4493314467 | G88: 1.912303667 | H88: 1.622650159 | I88: 0.7394930798
B89: 4 | C89: 0.3394380033 | D89: 0.3383824671 | E89: -0.6924919893 | G89: 1.944759094 | H89: 1.650103977 | I89: 0.7138884281
B90: 4 | C90: 0.6494669664 | D90: 0.1496572583 | E90: -0.6185807183 | G90: 2.007911934 | H90: 1.662451479 | I90: 0.6918085473
B91: 4 | C91: 0.04274821195 | D91: -0.01082619388 | E91: -0.2627914158 | G91: 2.012203666 | H91: 1.661551578 | I91: 0.6827184799
B92: 4 | C92: -0.4001636101 | D92: 0.1539398918 | E92: -0.5995036396 | G92: 1.971943132 | H92: 1.674340531 | I92: 0.6622538692
B93: 4 | C93: 0.3057378041 | D93: 0.1812400236 | E93: -0.03823263291 | G93: =G92*(1+C93/$I$24) -> 2.00208801 | H93: =H92*(1+D93/$I$24) -> 1.689513407 | I93: =I92*(1+E93/$I$24) -> 0.6609878838
B94: 4 | C94: -0.1271421307 | D94: 0.1333804143 | E94: 0.1107712885 | G94: 1.989360523 | H94: 1.700780807 | I94: 0.6646488078
B95: 4 | C95: 0.3733817126 | D95: 0.2879617906 | E95: 0.9768396256 | G95: 2.026500065 | H95: 1.725268801 | I95: 0.6971115724
B96: 4 | C96: 0.7180478307 | D96: 0.2849013722 | E96: -0.07577440789 | G96: 2.099256264 | H96: 1.749845374 | I96: 0.6944704115
B97: 4 | C97: -0.1470482492 | D97: -0.03059832829 | E97: 0.0002792308421 | G97: 2.083821666 | H97: 1.747168257 | I97: 0.6944801074
B98: 4 | C98: 0.3197067324 | D98: -0.01595984704 | E98: -0.3272294662 | G98: 2.117132257 | H98: 1.74577403 | I98: 0.6831173897
B99: 4 | C99: 0.5320928413 | D99: 0.0738452741 | E99: 0.3179820888 | G99: 2.173457803 | H99: 1.752219888 | I99: 0.6939783444
B100: 4 | C100: 0.2292748063 | D100: 0.008918740818 | E100: -0.02038178863 | G100: 2.198373758 | H100: 1.753001268 | I100: 0.6932711184
B101: 4 | C101: 0.2555360025 | D101: 0.2046909705 | E101: 0.1189651291 | G101: 2.22646194 | H101: 1.770942444 | I101: 0.6973948728
B102: 4 | C102: 0.6539545571 | D102: 0.3035008023 | E102: 0.2924232946 | G102: 2.299262187 | H102: 1.797816567 | I102: 0.7075915981
B103: 4 | C103: 0.134817637 | D103: 0.01740324582 | E103: 0.01311455459 | G103: 2.314761242 | H103: 1.799380959 | I103: 0.7080555856
B104: 3 | C104: -0.01878953361 | D104: 0.07964898067 | E104: -0.001760147935 | G104: 2.312586578 | H104: 1.806546902 | I104: 0.7079932714
B105: 3 | C105: -0.8184209507 | D105: 0.1932876958 | E105: -0.06767892805 | G105: 2.217953112 | H105: 1.824006066 | I105: 0.7055974602
B106: 3 | C106: -0.04840723305 | D106: 0.2476959028 | E106: 0.03511038433 | G106: 2.212584864 | H106: 1.846596008 | I106: 0.7068361501
B107: 3 | C107: 0.1677118394 | D107: 0.2430842786 | E107: 0.09422069261 | G107: 2.231138698 | H107: 1.869039931 | I107: 0.7101660796
B108: 3 | C108: 0.05786148532 | D108: 0.2672858419 | E108: 0.05520875728 | G108: 2.237593547 | H108: 1.894018326 | I108: 0.712126449
B109: 3 | C109: -0.03142843131 | D109: 0.2851983993 | E109: 0.06001156042 | G109: 2.234077345 | H109: 1.921026876 | I109: 0.7142632399
B110: 3 | C110: -0.2122789874 | D110: 0.2607301185 | E110: 0.04002253009 | G110: 2.210364961 | H110: 1.946070354 | I110: 0.715692571
B111: 3 | C111: 0.4720812205 | D111: -0.07332838437 | E111: -0.04616648936 | G111: 2.26253855 | H111: 1.938935244 | I111: 0.7140405204
B112: 3 | C112: -0.06307179262 | D112: 0.1587155708 | E112: -0.03370590721 | G112: 2.255403432 | H112: 1.954322205 | I112: 0.7128371512
B113: 3 | C113: -0.2398646019 | D113: 0.2337796655 | E113: 0.03207435286 | G113: 2.22835386 | H113: 1.977166245 | I113: 0.7139803407
B114: 3 | C114: -0.06282615613 | D114: 0.2405579478 | E114: 0.03046452578 | G114: 2.221353915 | H114: 2.000947397 | I114: 0.7150678943
B115: 3 | C115: 0.08669566097 | D115: 0.04403372212 | E115: -0.0302585283 | G115: 2.230983002 | H115: 2.005352855 | I115: 0.7139860492
B116: 3 | C116: 0.003272269121 | D116: 0.1748210494 | E116: 0.03323838252 | G116: 2.231348021 | H116: 2.02288175 | I116: 0.7151726363
B117: 3 | C117: -0.1595281445 | D117: 0.3668436074 | E117: 0.08209122944 | G117: 2.21354988 | H117: 2.059985812 | I117: 0.7181081063
B118: 3 | C118: -0.4902956751 | D118: 0.157943003 | E118: -0.04029651947 | G118: 2.159285184 | H118: 2.076253829 | I118: 0.7166612435
B119: 3 | C119: -0.7902218728 | D119: 0.4509253285 | E119: 0.0583380127 | G119: 2.073969464 | H119: 2.123065601 | I119: 0.7187516731
B120: 3 | C120: 0.4955725461 | D120: 0.09772150424 | E120: 0.01875085359 | G120: 2.125359581 | H120: 2.133439059 | I120: 0.7194255335
B121: 3 | C121: 1.052241402 | D121: 0.1005289549 | E121: 0.1158943241 | G121: 2.237179148 | H121: 2.144162679 | I121: 0.7235944003
B122: 3 | C122: -0.1053605403 | D122: 0.2344542488 | E122: 0.0277588007 | G122: 2.225393628 | H122: 2.169298082 | I122: 0.7245987059
B123: 4 | C123: 0.3834370099 | D123: 0.043406266 | E123: -0.312075806 | G123: 2.268058542 | H123: 2.174006138 | I123: 0.7132922197
B124: 4 | C124: -0.1516709859 | D124: -0.05978239571 | E124: -1.254453451 | G124: 2.250858608 | H124: 2.167507774 | I124: 0.6685526254
B125: 4 | C125: 0.3009735546 | D125: 0.4355572382 | E125: -0.4160533125 | G125: 2.284731054 | H125: 2.214711459 | I125: 0.6546449486
B126: 4 | C126: -0.02480402922 | D126: -0.1029490363 | E126: 0.1039380878 | G126: 2.281897527 | H126: 2.203311338 | I126: 0.6580470758
B127: 4 | C127: 0.3508163128 | D127: 0.2656292182 | E127: -0.05899270709 | G127: 2.321923871 | H127: 2.232574531 | I127: 0.6561060769
B128: 4 | C128: 0.08860005728 | D128: 0.06253541989 | E128: 0.5109011825 | G128: 2.33221 | H128: 2.239555281 | I128: 0.6728663454

Sheet Sim Portfolio
C2: State 1 | G2: State 2 | K2: State 3 | O2: State 4
B3: Assets | C3: A | D3: B | E3: C | G3: A | H3: B | I3: C | K3: A | L3: B | M3: C | O3: A | P3: B | Q3: C
B4: Expected Returns | C4: 0.2 | D4: 0.1 | E4: 0.05 | G4: 0.25 | H4: 0.1 | I4: 0.05 | K4: -0.2 | L4: 0.2 | M4: 0.01 | O4: 0.25 | P4: 0.15 | Q4: -0.05
B6: Volatilities | C6: 0.25 | D6: 0.15 | E6: 0.1 | G6: 0.3 | H6: 0.1 | I6: 0.05 | K6: 0.5 | L6: 0.1 | M6: 0.05 | O6: 0.25 | P6: 0.15 | Q6: 0.35
B8: Correlations | C8: 1 | D8: 0.7 | E8: 0.3 | G8: 1 | H8: 0.5 | I8: 0.7 | K8: 1 | L8: -0.5 | M8: 0.5 | O8: 1 | P8: 0.4 | Q8: 0.2
C9: =D8 -> 0.7 | D9: 1 | E9: 0.2 | G9: =H8 -> 0.5 | H9: 1 | I9: 0.8 | K9: =L8 -> -0.5 | L9: 1 | M9: 0.4 | O9: =P8 -> 0.4 | P9: 1 | Q9: 0.1
C10: =E8 -> 0.3 | D10: =E9 -> 0.2 | E10: 1 | G10: =I8 -> 0.7 | H10: =I9 -> 0.8 | I10: 1 | K10: =M8 -> 0.5 | L10: =M9 -> 0.4 | M10: 1 | O10: =Q8 -> 0.2 | P10: =Q9 -> 0.1 | Q10: 1
B11: Is Valid? | C11: =_xll.apaCorrels.IsValid(C8:E10) -> TRUE | G11: =_xll.apaCorrels.IsValid(G8:I10) -> TRUE | K11: =_xll.apaCorrels.IsValid(K8:M10) -> TRUE | O11: =_xll.apaCorrels.IsValid(O8:Q10) -> TRUE
B13: Initial State | C13: 1
B15: Transition Probabilities π | D15: From State… | J15: Function Arguments | M15: Means | R15: Vols | V15: CorrelsVecl
D16: 1 | E16: 2 | F16: 3 | G16: 4 | K16: A | L16: B | M16: C | P16: A | Q16: B | R16: C | T16: (A,B) | U16: (A,C) | V16: (B,C)
B17: To State… | C17: 1 | D17: 0.9 | E17: 0 | F17: 0 | G17: 0 | J17: 1 | K17: =C4:E4 -> 0.2 | L17: 0.1 | M17: 0.05 | P17: =C6:E6 -> 0.25 | Q17: 0.15 | R17: 0.1 | T17: =_xll.apaMatrix.Vecl(C8:E10) -> 0.7 | U17: 0.3 | V17: 0.2
C18: 2 | D18: 0.1 | E18: 0.9 | F18: 0 | G18: 0 | J18: 2 | K18: =G4:I4 -> 0.25 | L18: 0.1 | M18: 0.05 | P18: =G6:I6 -> 0.3 | Q18: 0.1 | R18: 0.05 | T18: =_xll.apaMatrix.Vecl(G8:I10) -> 0.5 | U18: 0.7 | V18: 0.8
C19: 3 | D19: 0 | E19: 0.1 | F19: 0.95 | G19: 0.01 | J19: 3 | K19: =K4:M4 -> -0.2 | L19: 0.2 | M19: 0.01 | P19: =K6:M6 -> 0.5 | Q19: 0.1 | R19: 0.05 | T19: =_xll.apaMatrix.Vecl(K8:M10) -> -0.5 | U19: 0.5 | V19: 0.4
C20: 4 | D20: 0 | E20: 0 | F20: 0.05 | G20: 0.99 | J20: 4 | K20: =O4:Q4 -> 0.25 | L20: 0.15 | M20: -0.05 | P20: =O6:Q6 -> 0.25 | Q20: 0.15 | R20: 0.35 | T20: =_xll.apaMatrix.Vecl(O8:Q10) -> 0.4 | U20: 0.2 | V20: 0.1
D21: =SUM(D17:D20) -> 1 | E21: =SUM(E17:E20) -> 1 | F21: 1 | G21: 1
B24: nObs | C24: 100 | E24: Portfolio Constituent Weights
B25: Show States? | C25: TRUE | E25: A | F25: B | G25: C
B26: nPaths | C26: 600 | E26: 0.6 | F26: 0.2 | G26: 0.2
C28: Simulated Portfolio Returns
C29: Mean | D29: 95% Conf | E29: 90% Conf | F29: 75% Conf | G29: Median | H29: 75% Conf | I29: 90% Conf | J29: 95% Conf
C30: =_xll.apaMarkovRegimeSwitching.Simulation.Portfolio(C24,C26,E26:G26,C13,K17:M20,P17:R20,T17:V20,D17:G20) -> 0.1417092252 | D30: -0.1395695056 | E30: -0.08960134863 | F30: 0.01424436858 | G30: 0.1367164923 | H30: 0.2602444613 | I30: 0.3818664682 | J30: 0.4530893106
C31: 0.147419595 | D31: -0.1542404588 | E31: -0.09516948322 | F31: 0.02683610083 | G31: 0.1352682327 | H31: 0.2794321607 | I31: 0.3856242421 | J31: 0.437502855
C32: 0.1557010923 | D32: -0.1754552705 | E32: -0.085720051 | F32: 0.03040901034 | G32: 0.1628513595 | H32: 0.2874812737 | I32: 0.403494261 | J32: 0.4586640614
C33: 0.1576755408 | D33: -0.154053771 | E33: -0.07989402205 | F33: 0.03056320499 | G33: 0.1670239036 | H33: 0.2836193306 | I33: 0.405010522 | J33: 0.4603610769
C34: 0.1446496435 | D34: -0.2264923927 | E34: -0.1105032854 | F34: 0.0297990173 | G34: 0.1454607463 | H34: 0.2784951954 | I34: 0.4086778163 | J34: 0.4638014974
C35: 0.137717139 | D35: -0.2071540867 | E35: -0.1075153185 | F35: 0.01679995607 | G35: 0.1435668338 | H35: 0.2657901545 | I35: 0.3941326331 | J35: 0.4434418836
C36: 0.1489925872 | D36: -0.1958004639 | E36: -0.1311903322 | F36: 0.01616019939 | G36: 0.1650616469 | H36: 0.2997292812 | I36: 0.4223348765 | J36: 0.4843952692
C37: 0.1245437412 | D37: -0.2845414413 | E37: -0.1496008 | F37: -0.007549298981 | G37: 0.1433306823 | H37: 0.2724830904 | I37: 0.4073550446 | J37: 0.465081689
C38: 0.1106594157 | D38: -0.299559426 | E38: -0.201005078 | F38: -0.01503857303 | G38: 0.1271967922 | H38: 0.2690824226 | I38: 0.3661813027 | J38: 0.4405157576
C39: 0.1301072314 | D39: -0.2574832322 | E39: -0.1342488423 | F39: 0.00209487935 | G39: 0.1404497381 | H39: 0.2880342975 | I39: 0.3916903976 | J39: 0.4673701906
C40: 0.07937723721 | D40: -0.3892408131 | E40: -0.2305262143 | F40: -0.07461642995 | G40: 0.09686594353 | H40: 0.2416995448 | I40: 0.367328985 | J40: 0.4462158914
C41: 0.09677954453 | D41: -0.3557007547 | E41: -0.2310554253 | F41: -0.03818046821 | G41: 0.121435643 | H41: 0.2638025178 | I41: 0.3814339784 | J41: 0.4520383993
C42: 0.07139950138 | D42: -0.3849974292 | E42: -0.2561864343 | F42: -0.07642631324 | G42: 0.09225342343 | H42: 0.2499915987 | I42: 0.3760542483 | J42: 0.4555080128
C43: 0.08533768002 | D43: -0.4016613405 | E43: -0.2733382461 | F43: -0.05980781067 | G43: 0.1074264789 | H43: 0.2605024816 | I43: 0.4130260147 | J43: 0.501542319
C44: 0.09680672077 | D44: -0.4391825298 | E44: -0.2626713106 | F44: -0.05943545463 | G44: 0.128718079 | H44: 0.2844273861 | I44: 0.4199552997 | J44: 0.4717762251
C45: 0.07407006924 | D45: -0.3974036198 | E45: -0.3015116359 | F45: -0.09000560749 | G45: 0.09783949303 | H45: 0.2627840867 | I45: 0.371981374 | J45: 0.4470789438
C46: 0.07899887463 | D46: -0.4417329331 | E46: -0.2817822604 | F46: -0.07046105406 | G46: 0.1027310792 | H46: 0.2585962265 | I46: 0.4068691751 | J46: 0.4917075358
C47: 0.05163896425 | D47: -0.4260256147 | E47: -0.3071496034 | F47: -0.0856947859 | G47: 0.06319719269 | H47: 0.2069304598 | I47: 0.3373978983 | J47: 0.4237199961
C48: 0.07869647427 | D48: -0.432071844 | E48: -0.323181671 | F48: -0.09182813381 | G48: 0.1090201386 | H48: 0.2617779797 | I48: 0.3923545308 | J48: 0.4942509916
C49: 0.08838034941 | D49: -0.3901171661 | E49: -0.2435183184 | F49: -0.08276229274 | G49: 0.1195404057 | H49: 0.2802360626 | I49: 0.4090837934 | J49: 0.4741398807
C50: 0.05719393426 | D50: -0.4361457141 | E50: -0.2999871739 | F50: -0.1015133998 | G50: 0.07648725002 | H50: 0.2361926463 | I50: 0.4007926928 | J50: 0.4558190617
C51: 0.05265447355 | D51: -0.457533796 | E51: -0.2979916894 | F51: -0.08917526615 | G51: 0.07223646474 | H51: 0.2320617968 | I51: 0.3656685131 | J51: 0.4734139431
C52: 0.05761408055 | D52: -0.4458809681 | E52: -0.292952092 | F52: -0.08784239286 | G52: 0.0888239387 | H52: 0.2286194432 | I52: 0.3603428739 | J52: 0.4529217597
C53: 0.05577079204 | D53: -0.4408406124 | E53: -0.3099972541 | F53: -0.1106354397 | G53: 0.08436501995 | H53: 0.2512412523 | I53: 0.3619436044 | J53: 0.440863302
C54: 0.07405979038 | D54: -0.4567786099 | E54: -0.2939516778 | F54: -0.09081716441 | G54: 0.1029988437 | H54: 0.2437918971 | I54: 0.4236538521 | J54: 0.4812391259
C55: 0.06898925382 | D55: -0.4029771576 | E55: -0.2786863396 | F55: -0.09080623641 | G55: 0.1041023475 | H55: 0.2594535861 | I55: 0.3645566495 | J55: 0.4457379828
C56: 0.05338656176 | D56: -0.4270148563 | E56: -0.3164526964 | F56: -0.1223440719 | G56: 0.07390224476 | H56: 0.2568525576 | I56: 0.3869354019 | J56: 0.452935353
C57: 0.05494284875 | D57: -0.4335390234 | E57: -0.3045081756 | F57: -0.1062307721 | G57: 0.07750543265 | H57: 0.2414207519 | I57: 0.3690229901 | J57: 0.456887949
C58: 0.06973958384 | D58: -0.4406341495 | E58: -0.3198155634 | F58: -0.0852291968 | G58: 0.08932342162 | H58: 0.2618294194 | I58: 0.3974944758 | J58: 0.4928574319
C59: 0.05376022262 | D59: -0.4576549815 | E59: -0.3206564704 | F59: -0.1102184795 | G59: 0.07329193614 | H59: 0.2341801106 | I59: 0.3949546923 | J59: 0.4736852928
C60: 0.06249624187 | D60: -0.4108605267 | E60: -0.3082026437 | F60: -0.1266254326 | G60: 0.07814177989 | H60: 0.2794478667 | I60: 0.3907407068 | J60: 0.4484831248
C61: 0.06251813613 | D61: -0.4736698843 | E61: -0.3039399677 | F61: -0.08561043799 | G61: 0.09614680029 | H61: 0.2554233562 | I61: 0.3833425059 | J61: 0.4715815399
C62: 0.07079948117 | D62: -0.4237388247 | E62: -0.2574927785 | F62: -0.07329605971 | G62: 0.1082724741 | H62: 0.2525081512 | I62: 0.3714467669 | J62: 0.4218689551
C63: 0.06995344182 | D63: -0.4228050093 | E63: -0.2833803202 | F63: -0.08494471665 | G63: 0.10316905 | H63: 0.2451097013 | I63: 0.374041439 | J63: 0.4457160091
C64: 0.06184812709 | D64: -0.4360978843 | E64: -0.304396098 | F64: -0.08979276929 | G64: 0.0856707391 | H64: 0.2415123307 | I64: 0.3758256091 | J64: 0.4682926063
C65: 0.08686718837 | D65: -0.3746265503 | E65: -0.2645183018 | F65: -0.0755568968 | G65: 0.1126392244 | H65: 0.2572730326 | I65: 0.3968225358 | J65: 0.5137770276
C66: 0.07997659851 | D66: -0.3645532948 | E66: -0.251978321 | F66: -0.08482542412 | G66: 0.09488658544 | H66: 0.2464507134 | I66: 0.3952004999 | J66: 0.474534534
C67: 0.06499443959 | D67: -0.4348485248 | E67: -0.3164978865 | F67: -0.1111584623 | G67: 0.08424914843 | H67: 0.2450696423 | I67: 0.403052827 | J67: 0.4887322739
C68: 0.06819059866 | D68: -0.3944035443 | E68: -0.2914939197 | F68: -0.09460941144 | G68: 0.09116868461 | H68: 0.2519548469 | I68: 0.3967841907 | J68: 0.4658801739
C69: 0.08947087049 | D69: -0.4226254901 | E69: -0.2727337089 | F69: -0.05620588716 | G69: 0.1136033899 | H69: 0.2755720728 | I69: 0.417161208 | J69: 0.4951503495
C70: 0.06711052746 | D70: -0.4421925848 | E70: -0.2916893211 | F70: -0.08027349172 | G70: 0.09565432234 | H70: 0.2541284669 | I70: 0.3797257509 | J70: 0.4766811469
C71: 0.08726373433 | D71: -0.3069029972 | E71: -0.21776586 | F71: -0.08076491238 | G71: 0.09320330779 | H71: 0.2551008414 | I71: 0.3972057409 | J71: 0.4837313718
C72: 0.1055875203 | D72: -0.3763166019 | E72: -0.2306388787 | F72: -0.03628871861 | G72: 0.1335136371 | H72: 0.2738385223 | I72: 0.3880355448 | J72: 0.4487581539
C73: 0.1016658779 | D73: -0.3695225088 | E73: -0.2309713725 | F73: -0.05347947693 | G73: 0.1261246064 | H73: 0.2722076509 | I73: 0.4162761448 | J73: 0.4825583526
C74: 0.09520928977 | D74: -0.3539814278 | E74: -0.226464765 | F74: -0.0372685807 | G74: 0.1151442329 | H74: 0.2588346249 | I74: 0.3892076757 | J74: 0.4609445898
C75: 0.09423610534 | D75: -0.3869425408 | E75: -0.2519118269 | F75: -0.04013678824 | G75: 0.1200399804 | H75: 0.2778767062 | I75: 0.3986971011 | J75: 0.460058707
C76: 0.08598436885 | D76: -0.3802933594 | E76: -0.2435068679 | F76: -0.05228663605 | G76: 0.1182347665 | H76: 0.2535871842 | I76: 0.3841002445 | J76: 0.4625698322
C77: 0.1053218776 | D77: -0.3373415238 | E77: -0.2289896931 | F77: -0.04252872098 | G77: 0.1178374281 | H77: 0.280304306 | I77: 0.4170063958 | J77: 0.4912933809
C78: 0.08928782762 | D78: -0.4457980949 | E78: -0.2965066062 | F78: -0.07229174695 | G78: 0.1223649161 | H78: 0.2872508706 | I78: 0.4149185996 | J78: 0.4953653552
C79: 0.1082947206 | D79: -0.3182582266 | E79: -0.2111114222 | F79: -0.05825375419 | G79: 0.1279757268 | H79: 0.2870921346 | I79: 0.4121535153 | J79: 0.4767227167
C80: 0.0944463821 | D80: -0.3060839718 | E80: -0.2069190917 | F80: -0.05007212418 | G80: 0.1081720465 | H80: 0.2585275851 | I80: 0.3769896985 | J80: 0.4644685079
C81: 0.1127727982 | D81: -0.3359636185 | E81: -0.2144755748 | F81: -0.02945880695 | G81: 0.1414634103 | H81: 0.2802931072 | I81: 0.3895379465 | J81: 0.4511547961
C82: 0.09533749417 | D82: -0.3425408622 | E82: -0.2384353803 | F82: -0.04793114717 | G82: 0.1087790489 | H82: 0.2552480203 | I82: 0.4045326848 | J82: 0.4695724737
C83: 0.07943024558 | D83: -0.3897730621 | E83: -0.2187794552 | F83: -0.06578120069 | G83: 0.09833360377 | H83: 0.2409250458 | I83: 0.3776887073 | J83: 0.4506135704
C84: 0.08860143106 | D84: -0.3768398973 | E84: -0.243584703 | F84: -0.05399363395 | G84: 0.1130542166 | H84: 0.2476345264 | I84: 0.3985435018 | J84: 0.4531470616
C85: 0.1063911004 | D85: -0.3868911983 | E85: -0.2299176807 | F85: -0.03104094241 | G85: 0.1355318975 | H85: 0.2705582761 | I85: 0.399777704 | J85: 0.4575488993
C86: 0.0863036089 | D86: -0.3540476329 | E86: -0.2441795232 | F86: -0.06412082118 | G86: 0.1137648531 | H86: 0.2667124232 | I86: 0.370503438 | J86: 0.4447190597
C87: 0.1004313444 | D87: -0.3390018962 | E87: -0.2066488133 | F87: -0.04986307943 | G87: 0.1258999579 | H87: 0.2664814978 | I87: 0.3663093002 | J87: 0.4581909502
C88: 0.09853616878 | D88: -0.3653120656 | E88: -0.2308359227 | F88: -0.04184822616 | G88: 0.1182430311 | H88: 0.2625749717 | I88: 0.4124646697 | J88: 0.4694551266
C89: 0.08465632928 | D89: -0.3709426575 | E89: -0.2230481116 | F89: -0.06360860041 | G89: 0.1123708327 | H89: 0.2623968755 | I89: 0.3838323934 | J89: 0.4428928676
C90: 0.1119394248 | D90: -0.3128627626 | E90: -0.2233890857 | F90: -0.02462005191 | G90: 0.121333271 | H90: 0.2747884841 | I90: 0.3882727485 | J90: 0.4597025296
C91: 0.102987466 | D91: -0.34837574 | E91: -0.2049923897 | F91: -0.02843467789 | G91: 0.1344335564 | H91: 0.2705982163 | I91: 0.3776090502 | J91: 0.4365107859
C92: 0.1056513776 | D92: -0.4095081868 | E92: -0.2120754366 | F92: -0.0142715864 | G92: 0.1250711556 | H92: 0.2637962102 | I92: 0.3786175157 | J92: 0.4752050982
C93: 0.1076970594 | D93: -0.3452184769 | E93: -0.1844579669 | F93: -0.0350114083 | G93: 0.1275637564 | H93: 0.2742291213 | I93: 0.4036519012 | J93: 0.4766690713
C94: 0.1199067348 | D94: -0.3083351909 | E94: -0.2033829735 | F94: -0.0200827723 | G94: 0.1384449034 | H94: 0.2804042956 | I94: 0.4069025308 | J94: 0.4960691883
C95: 0.1075104591 | D95: -0.3216975581 | E95: -0.178970352 | F95: -0.03095185097 | G95: 0.1318832344 | H95: 0.2730223109 | I95: 0.3875684134 | J95: 0.4647650521
C96: 0.1039683697 | D96: -0.3366967909 | E96: -0.1854601639 | F96: -0.0383293075 | G96: 0.1246109657 | H96: 0.277081263 | I96: 0.3703627192 | J96: 0.4493022276
C97: 0.1022958436 | D97: -0.3514857784 | E97: -0.2144256236 | F97: -0.04734834041 | G97: 0.1187400926 | H97: 0.2794042154 | I97: 0.3903498233 | J97: 0.4615784922
C98: 0.1087232142 | D98: -0.3055856967 | E98: -0.1959967843 | F98: -0.03908539409 | G98: 0.1278419759 | H98: 0.2700680849 | I98: 0.4086157185 | J98: 0.4735939888
C99: 0.1175979524 | D99: -0.3057145453 | E99: -0.2003191618 | F99: -0.01906434304 | G99: 0.1423663758 | H99: 0.2748561109 | I99: 0.4027798512 | J99: 0.4693760817
C100: 0.1224132577 | D100: -0.3537681712 | E100: -0.1556204541 | F100: -0.009881706019 | G100: 0.1383097538 | H100: 0.2761263382 | I100: 0.4049440857 | J100: 0.4814013522
C101: 0.1172773526 | D101: -0.2854263497 | E101: -0.1871566494 | F101: -0.0351650735 | G101: 0.1308755625 | H101: 0.295023943 | I101: 0.4199136104 | J101: 0.4663700315
C102: 0.1093050877 | D102: -0.2814805324 | E102: -0.1975190499 | F102: -0.02188852795 | G102: 0.1164273302 | H102: 0.2584067594 | I102: 0.4099052234 | J102: 0.4793908977
C103: 0.1106824414 | D103: -0.32563848 | E103: -0.2239242914 | F103: -0.03296435642 | G103: 0.1283954547 | H103: 0.2785618044 | I103: 0.4012166675 | J103: 0.4857694985
C104: 0.1143354027 | D104: -0.3260589363 | E104: -0.202241219 | F104: -0.02535959858 | G104: 0.1372195915 | H104: 0.2812503191 | I104: 0.4006574709 | J104: 0.4730705015
C105: 0.09868605269 | D105: -0.335893149 | E105: -0.2000172897 | F105: -0.02813344635 | G105: 0.1205710824 | H105: 0.2462866026 | I105: 0.3797486843 | J105: 0.4460135611
C106: 0.1199067169 | D106: -0.2853228878 | E106: -0.1651423651 | F106: -0.01596133494 | G106: 0.130062632 | H106: 0.2716157191 | I106: 0.4039275425 | J106: 0.4618880811
C107: 0.125645001 | D107: -0.3218536286 | E107: -0.193965349 | F107: -0.004799292759 | G107: 0.1515935241 | H107: 0.2893294854 | I107: 0.4044043869 | J107: 0.4938808825
C108: 0.1154817314 | D108: -0.3235585439 | E108: -0.1882336478 | F108: -0.02215230307 | G108: 0.1298381405 | H108: 0.2860552852 | I108: 0.3895008695 | J108: 0.4542899455
C109: 0.105714926 | D109: -0.3569749838 | E109: -0.2256743142 | F109: -0.05201026101 | G109: 0.1308987499 | H109: 0.2776266277 | I109: 0.4038375526 | J109: 0.4652729455
C110: 0.1240918382 | D110: -0.3094832149 | E110: -0.1961557705 | F110: -0.02365016784 | G110: 0.1460095441 | H110: 0.2804614237 | I110: 0.3994920753 | J110: 0.4919912484
C111: 0.1197154405 | D111: -0.3586581216 | E111: -0.2110768288 | F111: -0.02390405075 | G111: 0.1463075575 | H111: 0.2957861022 | I111: 0.4253442922 | J111: 0.4871685497
C112: 0.1375234788 | D112: -0.2600480932 | E112: -0.1592169295 | F112: 0.003676974698 | G112: 0.1552377702 | H112: 0.2936786009 | I112: 0.4170228943 | J112: 0.4807697043
C113: 0.115127399 | D113: -0.3305106472 | E113: -0.199231119 | F113: -0.03991276521 | G113: 0.12974896 | H113: 0.284209214 | I113: 0.4291633734 | J113: 0.5045361751
C114: 0.1076536385 | D114: -0.3453115649 | E114: -0.1617604566 | F114: -0.03089873819 | G114: 0.1225993235 | H114: 0.2685425242 | I114: 0.3947162855 | J114: 0.4622559942
C115: 0.1213888059 | D115: -0.283416966 | E115: -0.1747738709 | F115: -0.01743320891 | G115: 0.1357138124 | H115: 0.2787614291 | I115: 0.4051260244 | J115: 0.4774097737
C116: 0.1370282619 | D116: -0.2532493192 | E116: -0.1322444559 | F116: 0.006231697455 | G116: 0.1484556636 | H116: 0.2810217411 | I116: 0.4141804667 | J116: 0.4823273435
C117: 0.1166548298 | D117: -0.2990444235 | E117: -0.1893786441 | F117: -0.01345740468 | G117: 0.1367639302 | H117: 0.2677712321 | I117: 0.4007922663 | J117: 0.4589930667
C118: 0.1221516895 | D118: -0.264911846 | E118: -0.1655977106 | F118: -0.004311122449 | G118: 0.1368011464 | H118: 0.2698101488 | I118: 0.3968935546 | J118: 0.4803188962
C119: 0.1258916995 | D119: -0.2781103062 | E119: -0.1743073423 | F119: -0.01554066425 | G119: 0.1349982766 | H119: 0.2781959483 | I119: 0.4014143277 | J119: 0.4810598383
C120: 0.1334760987 | D120: -0.2749303272 | E120: -0.1426722129 | F120: 0.004205838506 | G120: 0.1461149852 | H120: 0.2897760622 | I120: 0.4057783606 | J120: 0.4587814819
C121: 0.1287094852 | D121: -0.270246833 | E121: -0.1710022949 | F121: -0.0145417027 | G121: 0.152152048 | H121: 0.2859041623 | I121: 0.4084375334 | J121: 0.4721607025
C122: 0.1236489695 | D122: -0.2556441619 | E122: -0.1679304138 | F122: -0.001528944645 | G122: 0.1413689624 | H122: 0.2607969428 | I122: 0.3841569388 | J122: 0.4602384523
C123: 0.1230736725 | D123: -0.3052429081 | E123: -0.1607528494 | F123: 0.006259949704 | G123: 0.1533025427 | H123: 0.2770330278 | I123: 0.3900136404 | J123: 0.4450070217
C124: 0.1341267472 | D124: -0.2671270797 | E124: -0.1514171775 | F124: -0.005026080829 | G124: 0.1286685917 | H124: 0.2910264906 | I124: 0.4266352435 | J124: 0.4847912326
C125: 0.1304282954 | D125: -0.2847007989 | E125: -0.1561010334 | F125: -0.0145581165 | G125: 0.1467431838 | H125: 0.2863201308 | I125: 0.4055652248 | J125: 0.4936141549
C126: 0.1296440749 | D126: -0.2240881824 | E126: -0.1517966137 | F126: -0.007321635254 | G126: 0.1498418219 | H126: 0.2794495116 | I126: 0.3875326886 | J126: 0.4807828637
C127: 0.1181323621 | D127: -0.2685180979 | E127: -0.1612748128 | F127: -0.005955112767 | G127: 0.1247580284 | H127: 0.2618284532 | I127: 0.4026104081 | J127: 0.4545510157
C128: 0.1096015544 | D128: -0.3010151747 | E128: -0.1813065851 | F128: -0.02578317976 | G128: 0.1267731251 | H128: 0.2734455461 | I128: 0.3882475274 | J128: 0.4515775724
C129: 0.1175774665 | D129: -0.357926787 | E129: -0.1957245891 | F129: -0.0113893991 | G129: 0.1408980025 | H129: 0.2771273957 | I129: 0.4101794261 | J129: 0.4870083153

Sheet Sim Hit Rates
B2: Initial State | C2: 1
C3: …this is called "Markov property": only the current state affects the next state
B5: Transition Probabilities π | D5: From State…
D6: 1 | E6: 2 | F6: 3 | G6: 4 | J6: Eigenvalues | O6: Det | Q6: Eigenvectors π
B7: To State… | C7: 1 | D7: 0.9 | E7: 0 | F7: 0 | G7: 0 | I7: π | J7: =_xll.apaEigenvalues(D7:G10) -> 0.9 | K7: 0.9 | L7: 0.9476393202 | M7: 0.9923606798 | O7: =MDETERM(D7:G10) -> 0.7614 | Q7: =_xll.apaEigenvectors(D7:G10) -> 1 | R7: 0 | S7: 0 | T7: 0
C8: 2 | D8: 0.1 | E8: 0.9 | F8: 0 | G8: 0 | I8: π' | J8: =_xll.apaEigenvalues(TRANSPOSE(D7:G10)) -> 0.7667922586 | K8: 1.070484626 | L8: 0.9094409741 | M8: 0.9932821409 | O8: =MDETERM(TRANSPOSE(D7:G10)) -> 0.7614 | Q8: 0 | R8: 1 | S8: 0 | T8: 0
C9: 3 | D9: 0 | E9: 0.1 | F9: 0.95 | G9: 0.01 | Q9: 0 | R9: 0 | S9: 0.9732489895 | T9: 0.2297529205
C10: 4 | D10: 0 | E10: 0 | F10: 0.05 | G10: 0.99 | Q10: 0 | R10: 0 | S10: -0.2297529205 | T10: 0.9732489895
D11: =SUM(D7:D10) -> 1 | E11: =SUM(E7:E10) -> 1 | F11: 1 | G11: 1 | Q11: …equilibrium is also known as Perron-Frobeniuseigenvector.
B14: nObs | C14: 100
B15: Show States? | C15: TRUE
B16: nPaths | C16: 500
D18: Simulated Hit Rates
D19: Regime 1 | E19: Regime 2 | F19: Regime 3 | G19: Regime 4
D20: =_xll.apaMarkovRegimeSwitching.Simulation.HitRates(C14,C16,C2,D7:G10) -> 0.902 | E20: 0.098 | F20: 0 | G20: 0
D21: 0.8 | E21: 0.188 | F21: 0.012 | G21: 0
D22: 0.7 | E22: 0.278 | F22: 0.022 | G22: 0
D23: 0.626 | E23: 0.324 | F23: 0.05 | G23: 0
D24: 0.56 | E24: 0.36 | F24: 0.076 | G24: 0.004
D25: 0.512 | E25: 0.39 | F25: 0.092 | G25: 0.006
D26: 0.462 | E26: 0.388 | F26: 0.138 | G26: 0.012
D27: 0.408 | E27: 0.404 | F27: 0.17 | G27: 0.018
D28: 0.362 | E28: 0.426 | F28: 0.186 | G28: 0.026
D29: 0.32 | E29: 0.426 | F29: 0.218 | G29: 0.036
D30: 0.282 | E30: 0.43 | F30: 0.242 | G30: 0.046
D31: 0.262 | E31: 0.398 | F31: 0.284 | G31: 0.056
D32: 0.224 | E32: 0.396 | F32: 0.314 | G32: 0.066
D33: 0.2 | E33: 0.386 | F33: 0.336 | G33: 0.078
D34: 0.184 | E34: 0.372 | F34: 0.35 | G34: 0.094
D35: 0.172 | E35: 0.35 | F35: 0.366 | G35: 0.112
D36: 0.154 | E36: 0.326 | F36: 0.386 | G36: 0.134
D37: 0.138 | E37: 0.306 | F37: 0.396 | G37: 0.16
D38: 0.122 | E38: 0.29 | F38: 0.404 | G38: 0.184
D39: 0.118 | E39: 0.268 | F39: 0.416 | G39: 0.198
D40: 0.106 | E40: 0.256 | F40: 0.428 | G40: 0.21
D41: 0.096 | E41: 0.256 | F41: 0.432 | G41: 0.216
D42: 0.084 | E42: 0.238 | F42: 0.448 | G42: 0.23
D43: 0.076 | E43: 0.22 | F43: 0.458 | G43: 0.246
D44: 0.07 | E44: 0.212 | F44: 0.444 | G44: 0.274
D45: 0.06 | E45: 0.198 | F45: 0.456 | G45: 0.286
D46: 0.052 | E46: 0.188 | F46: 0.444 | G46: 0.316
D47: 0.044 | E47: 0.178 | F47: 0.442 | G47: 0.336
D48: 0.04 | E48: 0.166 | F48: 0.444 | G48: 0.35
D49: 0.038 | E49: 0.15 | F49: 0.436 | G49: 0.376
D50: 0.034 | E50: 0.146 | F50: 0.428 | G50: 0.392
D51: 0.026 | E51: 0.138 | F51: 0.422 | G51: 0.414
D52: 0.02 | E52: 0.136 | F52: 0.414 | G52: 0.43
D53: 0.02 | E53: 0.126 | F53: 0.406 | G53: 0.448
D54: 0.02 | E54: 0.116 | F54: 0.404 | G54: 0.46
D55: 0.012 | E55: 0.108 | F55: 0.41 | G55: 0.47
D56: 0.008 | E56: 0.104 | F56: 0.402 | G56: 0.486
D57: 0.008 | E57: 0.098 | F57: 0.386 | G57: 0.508
D58: 0.006 | E58: 0.092 | F58: 0.38 | G58: 0.522
D59: 0.004 | E59: 0.078 | F59: 0.394 | G59: 0.524
D60: 0.004 | E60: 0.07 | F60: 0.38 | G60: 0.546
D61: 0.002 | E61: 0.06 | F61: 0.39 | G61: 0.548
D62: 0.002 | E62: 0.056 | F62: 0.382 | G62: 0.56
D63: 0.002 | E63: 0.05 | F63: 0.378 | G63: 0.57
D64: 0.002 | E64: 0.046 | F64: 0.364 | G64: 0.588
D65: 0 | E65: 0.044 | F65: 0.348 | G65: 0.608
D66: 0 | E66: 0.038 | F66: 0.358 | G66: 0.604
D67: 0 | E67: 0.03 | F67: 0.356 | G67: 0.614
D68: 0 | E68: 0.026 | F68: 0.338 | G68: 0.636
D69: 0 | E69: 0.022 | F69: 0.344 | G69: 0.634
D70: 0 | E70: 0.02 | F70: 0.33 | G70: 0.65
D71: 0 | E71: 0.02 | F71: 0.312 | G71: 0.668
D72: 0 | E72: 0.016 | F72: 0.286 | G72: 0.698
D73: 0 | E73: 0.014 | F73: 0.278 | G73: 0.708
D74: 0 | E74: 0.014 | F74: 0.268 | G74: 0.718
D75: 0 | E75: 0.014 | F75: 0.262 | G75: 0.724
D76: 0 | E76: 0.01 | F76: 0.262 | G76: 0.728
D77: 0 | E77: 0.006 | F77: 0.268 | G77: 0.726
D78: 0 | E78: 0.006 | F78: 0.264 | G78: 0.73
D79: 0 | E79: 0.004 | F79: 0.264 | G79: 0.732
D80: 0 | E80: 0.004 | F80: 0.26 | G80: 0.736
D81: 0 | E81: 0.004 | F81: 0.26 | G81: 0.736
D82: 0 | E82: 0.004 | F82: 0.264 | G82: 0.732
D83: 0 | E83: 0.002 | F83: 0.262 | G83: 0.736
D84: 0 | E84: 0.002 | F84: 0.264 | G84: 0.734
D85: 0 | E85: 0.002 | F85: 0.254 | G85: 0.744
D86: 0 | E86: 0.002 | F86: 0.252 | G86: 0.746
D87: 0 | E87: 0.002 | F87: 0.246 | G87: 0.752
D88: 0 | E88: 0.002 | F88: 0.246 | G88: 0.752
D89: 0 | E89: 0.002 | F89: 0.242 | G89: 0.756
D90: 0 | E90: 0.002 | F90: 0.228 | G90: 0.77
D91: 0 | E91: 0.002 | F91: 0.218 | G91: 0.78
D92: 0 | E92: 0.002 | F92: 0.196 | G92: 0.802
D93: 0 | E93: 0.002 | F93: 0.202 | G93: 0.796
D94: 0 | E94: 0.002 | F94: 0.198 | G94: 0.8
D95: 0 | E95: 0.002 | F95: 0.192 | G95: 0.806
D96: 0 | E96: 0.002 | F96: 0.194 | G96: 0.804
D97: 0 | E97: 0.002 | F97: 0.184 | G97: 0.814
D98: 0 | E98: 0.002 | F98: 0.18 | G98: 0.818
D99: 0 | E99: 0.002 | F99: 0.184 | G99: 0.814
D100: 0 | E100: 0.002 | F100: 0.178 | G100: 0.82
D101: 0 | E101: 0.002 | F101: 0.178 | G101: 0.82
D102: 0 | E102: 0.002 | F102: 0.182 | G102: 0.816
D103: 0 | E103: 0.002 | F103: 0.182 | G103: 0.816
D104: 0 | E104: 0.002 | F104: 0.176 | G104: 0.822
D105: 0 | E105: 0.002 | F105: 0.176 | G105: 0.822
D106: 0 | E106: 0.002 | F106: 0.172 | G106: 0.826
D107: 0 | E107: 0.002 | F107: 0.178 | G107: 0.82
D108: 0 | E108: 0.002 | F108: 0.174 | G108: 0.824
D109: 0 | E109: 0.002 | F109: 0.174 | G109: 0.824
D110: 0 | E110: 0.002 | F110: 0.178 | G110: 0.82
D111: 0 | E111: 0.002 | F111: 0.17 | G111: 0.828
D112: 0 | E112: 0.002 | F112: 0.176 | G112: 0.822
D113: 0 | E113: 0.002 | F113: 0.174 | G113: 0.824
D114: 0 | E114: 0.002 | F114: 0.172 | G114: 0.826
D115: 0 | E115: 0 | F115: 0.166 | G115: 0.834
D116: 0 | E116: 0 | F116: 0.17 | G116: 0.83
D117: 0 | E117: 0 | F117: 0.17 | G117: 0.83
D118: 0 | E118: 0 | F118: 0.172 | G118: 0.828
D119: 0 | E119: 0 | F119: 0.17 | G119: 0.83
